bitfinex/quotes_ETHUSD_20250210
["timestamp","ask_amount","ask_price","bid_price","bid_amount"]
[1739155553868,3.85341,2595.1,2595.0,2.47848534]
[1739155554024,3.85362,2595.0,2594.6,2.47848534]
[1739155554417,0.09097248,2594.9,2594.6,2.47848534]
[1739155554759,0.7674,2595.5,2594.6,2.47848534]
[1739155554760,3.853,2595.4,2594.7,3.85394]
[1739155554973,3.85274,2595.6,2595.0,2.47848534]
[1739155555251,3.85252,2595.7,2595.1,35.0]
[1739155555447,3.8527,2595.6,2595.1,35.0]
[1739155555753,3.85284,2595.5,2595.1,35.0]
[1739155555956,3.85302,2595.4,2595.1,35.0]
[1739155556158,3.85341,2595.1,2595.0,2.47848534]
[1739155556861,3.85341,2595.1,2594.6,37.47848534]
[1739155557011,3.85341,2595.1,2594.6,2.47848534]
[1739155557422,3.85328,2595.2,2594.6,2.47848534]
[1739155557630,3.85343,2595.1,2594.7,35.0]
[1739155557934,3.85357,2595.0,2594.7,35.0]
[1739155558943,3.85397,2594.8,2594.6,2.47848534]
[1739155559763,3.85401,2594.7,2594.6,2.47848534]
[1739155559925,3.85401,2594.7,2594.2,2.47848534]
[1739155560143,3.85417,2594.6,2594.2,2.47848534]
[1739155560367,3.8546,2594.3,2594.2,2.47848534]
[1739155560573,3.8546,2594.3,2593.8,2.47848534]
[1739155560886,3.85478,2594.2,2593.8,2.47848534]
[1739155561193,3.8546,2594.3,2593.8,2.47848534]
[1739155561482,3.85519,2594.0,2593.8,2.47848534]
[1739155561637,0.09082709,2593.9,2593.4,2.47848534]
[1739155561838,3.85483,2594.2,2593.5,0.03855365]
[1739155562073,0.09082709,2594.1,2593.4,2.47848534]
[1739155562269,3.85508,2594.0,2593.4,2.47848534]
[1739155562495,3.94605709,2593.9,2593.4,2.47848534]
[1739155562794,3.85546,2593.8,2593.4,2.47848534]
[1739155562942,0.09082709,2593.9,2593.4,6.33432534]
[1739155563148,3.85509,2594.0,2593.4,2.47848534]
[1739155563442,3.85573,2593.6,2593.4,2.47848534]
[1739155563670,3.85579,2593.5,2593.4,2.47848534]
[1739155563838,0.09082709,2593.5,2593.4,2.47848534]
[1739155564268,3.85579,2593.5,2593.4,2.47848534]
[1739155564637,3.94471784,2593.5,2593.4,2.47848534]
[1739155565001,0.08892784,2593.5,2593.4,6.33442534]
[1739155565145,0.7645,2594.3,2593.4,2.47848534]
[1739155565146,3.85517,2594.0,2593.4,2.47848534]
[1739155565477,3.85575,2593.6,2593.4,2.47848534]
[1739155566085,3.94471784,2593.5,2593.4,2.47848534]
[1739155566254,0.08892784,2593.5,2593.4,2.47848534]
[1739155566584,3.94471784,2593.5,2593.4,2.47848534]
[1739155566939,0.08892784,2593.5,2593.4,2.47848534]
[1739155567141,0.08892784,2593.5,2593.4,2.72633387]
[1739155567355,3.85559,2593.7,2593.4,2.47848534]
[1739155567581,0.08892784,2593.5,2593.4,2.47848534]
[1739155567779,3.85579,2593.5,2593.4,2.47848534]
[1739155568081,0.08892784,2593.5,2593.0,2.47848534]
[1739155568390,3.85679,2592.9,2592.6,2.47848534]
[1739155568983,4.74908784,2593.4,2592.6,2.47848534]
[1739155568984,3.94576784,2592.8,2592.6,2.47848534]
[1739155569341,0.8042,2592.7,2592.2,2.51705569]
[1739155569543,7.71532,2592.3,2591.7,2.47848534]
[1739155569854,3.85789,2592.1,2591.7,2.47848534]
[1739155570058,0.08668472,2592.0,2591.7,2.47848534]
[1739155570255,3.85818,2591.9,2591.7,2.47848534]
[1739155570584,3.85818,2591.9,2591.3,0.7756]
[1739155570585,4.66238,2591.9,2591.3,2.47848534]
[1739155570791,3.94345669,2591.8,2591.3,2.47848534]
[1739155571085,0.08511669,2591.8,2591.7,6.33695534]
[1739155571311,0.8042,2592.4,2591.7,7.11255534]
[1739155571458,0.08149925,2592.3,2591.7,3.25408534]
[1739155571655,3.93921925,2592.3,2591.7,3.57949387]
[1739155571859,3.85789,2592.1,2591.7,2.47848534]
[1739155572182,0.8042,2592.4,2591.8,3.89689009]
[1739155572183,0.0817053,2592.0,2591.8,3.89689009]
[1739155572479,0.8042,2592.8,2591.9,0.7756]
[1739155572657,3.8573,2592.5,2591.9,0.7756]
[1739155572853,3.85638,2593.2,2592.4,3.85732]
[1739155573095,0.8042,2593.6,2593.0,2.47848534]
[1739155573288,0.8042,2593.6,2593.0,6.33496534]
[1739155573580,0.8042,2593.6,2592.6,2.47848534]
[1739155573766,3.85676,2592.9,2592.5,0.7756]
[1739155573975,3.85711,2592.7,2592.2,3.25408534]
[1739155574178,3.85714,2592.6,2592.2,2.47848534]
[1739155574484,1.31121361,2593.7,2592.3,3.85746]
[1739155574485,3.85654,2593.0,2592.3,3.85746]
[1739155574885,7.71411,2592.7,2592.2,2.47848534]
[1739155575182,3.85714,2592.6,2591.9,3.85812]
[1739155575490,3.85768,2592.3,2591.8,3.25408534]
[1739155575660,3.85784,2592.2,2591.8,2.47848534]
[1739155576254,0.8042,2592.5,2591.4,2.47848534]
[1739155576470,3.85896,2591.4,2591.0,3.25408534]
[1739155576693,3.85866,2591.6,2591.0,3.25408534]
[1739155576900,4.66252,2591.8,2591.0,3.25408534]
[1739155577196,0.8042,2592.2,2591.6,3.85852]
[1739155577370,0.07886335,2591.7,2591.4,2.47848534]
[1739155577695,3.85792,2592.1,2591.4,2.47848534]
[1739155577890,3.85792,2592.1,2591.4,6.33736534]
[1739155578097,0.07886335,2592.0,2591.4,2.47848534]
[1739155578250,3.85759,2592.3,2591.5,0.03858019]
[1739155578458,3.85731,2592.5,2591.7,3.85841]
[1739155578683,3.8573,2592.5,2591.6,0.7756]
[1739155578996,3.93640335,2592.4,2591.8,2.47848534]
[1739155579192,0.07886335,2592.4,2591.9,3.85811]
[1739155579401,3.8582,2591.9,2591.4,2.47848534]
[1739155579693,0.07881177,2591.8,2591.4,2.47848534]
[1739155579996,3.85842,2591.8,2591.4,2.47848534]
[1739155580304,0.07881177,2591.7,2591.4,2.47848534]
[1739155580595,0.8042,2592.0,2591.1,0.7756]
[1739155580810,3.85876,2591.5,2591.0,2.47848534]
[1739155580969,3.85902,2591.4,2591.0,2.47848534]
[1739155581155,0.07881177,2591.4,2591.0,2.47848534]
[1739155581357,3.85907,2591.3,2591.0,2.47848534]
[1739155581560,4.66327,2591.3,2590.7,0.0643999]
[1739155582077,3.93804177,2591.2,2590.7,0.0643999]
[1739155582492,3.85961,2591.0,2590.7,0.0643999]
[1739155583005,3.85981,2590.8,2590.7,0.0643999]
[1739155583308,4.66401,2590.8,2590.7,0.0643999]
[1739155583492,4.74282177,2590.8,2590.7,0.0643999]
[1739155585007,7.74282177,2590.8,2590.7,0.0643999]
[1739155585211,7.74282177,2590.8,2590.7,9.9e-06]
[1739155586022,0.8042,2589.6,2589.0,2.47848534]
[1739155586202,3.8601,2590.6,2589.3,3.86197]
[1739155586203,3.86096,2590.1,2589.3,3.86197]
[1739155586407,0.8042,2590.0,2589.4,2.47848534]
[1739155586704,3.86205,2589.3,2589.0,2.47848534]
[1739155586903,3.86186,2589.5,2588.7,3.8629]
[1739155587111,3.93709947,2589.4,2588.7,3.8629]
[1739155587404,0.07518947,2589.4,2588.6,3.25408534]
[1739155587604,3.93710947,2589.4,2588.6,3.25408534]
[1739155587806,3.8622,2589.2,2588.6,3.25408534]
[1739155588007,0.07518947,2589.4,2589.0,6.34086534]
[1739155588329,3.8615,2589.7,2589.0,2.47848534]
[1739155588529,0.07518947,2589.6,2589.2,3.86217]
[1739155588822,3.86065,2590.3,2589.5,3.86164]
[1739155589124,3.85964,2591.0,2590.2,3.8607]
[1739155589329,3.86032,2590.5,2590.0,0.7756]
[1739155589519,3.86059,2590.3,2590.0,0.7756]
[1739155589684,3.86059,2590.3,2589.9,2.47848534]
[1739155590021,3.86098,2590.1,2589.6,0.7756]
[1739155590188,4.6648,2590.3,2589.6,4.63707]
[1739155590533,0.8042,2590.3,2589.6,0.7756]
[1739155590822,3.86155,2589.7,2589.5,2.47848534]
[1739155591023,3.86155,2589.7,2589.1,2.47848534]
[1739155591226,3.86177,2589.5,2589.1,2.47848534]
[1739155591427,3.86195,2589.4,2589.1,2.47848534]
[1739155591734,3.86217,2589.3,2588.7,2.47848534]
[1739155591937,3.86236,2589.1,2588.7,2.47848534]
[1739155592226,0.8042,2589.6,2588.7,2.47848534]
[1739155592428,0.07518947,2589.0,2588.7,2.47848534]
[1739155592728,0.07518947,2588.9,2588.7,2.47848534]
[1739155592889,3.86241,2589.1,2588.7,2.47848534]
[1739155593092,0.07518947,2589.0,2588.7,2.47848534]
[1739155593532,0.46894942,2589.0,2588.7,2.47848534]
[1739155593711,0.07518947,2589.0,2588.7,2.47848534]
[1739155593921,3.86245,2589.1,2588.7,2.47848534]
[1739155594217,3.93742379,2589.0,2588.3,2.47848534]
[1739155594825,3.86282,2588.8,2588.3,2.47848534]
[1739155595002,3.93742379,2589.0,2588.7,2.47848534]
[1739155595003,0.07491379,2589.0,2588.7,2.47848534]
[1739155595211,3.86226,2589.2,2588.7,2.47848534]
[1739155595412,3.8626,2589.0,2588.7,2.47848534]
[1739155595937,3.8625,2589.0,2588.7,2.47848534]
[1739155596104,3.8627,2588.9,2588.7,2.47848534]
[1739155596453,4.6395,2588.9,2588.7,2.47848534]
[1739155596618,0.7768,2588.9,2588.7,2.47848534]
[1739155596940,0.77351056,2589.1,2588.7,2.47848534]
[1739155597142,3.86274,2588.9,2588.7,2.47848534]
[1739155597299,3.86304,2588.7,2588.3,2.47848534]
[1739155597599,3.86281,2588.8,2588.3,2.47848534]
[1739155597795,3.86325,2588.5,2588.3,2.47848534]
[1739155598023,0.7768,2588.9,2588.3,2.47848534]
[1739155598350,0.7768,2589.2,2588.7,2.47848534]
[1739155598518,3.86214,2589.3,2588.7,2.47848534]
[1739155598721,3.86236,2589.1,2588.7,2.47848534]
[1739155599271,3.86253,2589.0,2588.7,2.47848534]
[1739155599711,0.77567638,2589.2,2588.7,2.47848534]
[1739155599712,3.86279,2588.8,2588.7,2.47848534]
[1739155599912,3.86296,2588.7,2588.3,2.47848534]
[1739155600132,3.86279,2588.8,2588.3,2.47848534]
[1739155600507,3.86249,2589.0,2588.7,2.47848534]
[1739155600702,3.86144,2589.8,2589.0,3.8624]
[1739155600902,3.86144,2589.8,2589.1,2.47848534]
[1739155601105,3.86161,2589.6,2589.1,2.47848534]
[1739155601407,0.07317381,2589.5,2589.1,2.47848534]
[1739155601604,0.07317381,2589.5,2589.4,3.86189]
[1739155601807,4.63712,2590.5,2589.5,0.7848]
[1739155602039,3.861,2590.0,2589.6,2.47848534]
[1739155602629,0.0736305,2589.9,2589.6,2.47848534]
[1739155603130,3.86141,2589.8,2589.2,2.47848534]
[1739155603334,3.86165,2589.6,2589.2,2.47848534]
[1739155603535,0.0736305,2589.5,2589.2,2.47848534]
[1739155603861,3.86204,2589.3,2589.2,2.47848534]
[1739155604056,3.86204,2589.3,2588.7,0.7848]
[1739155604057,3.86222,2589.2,2588.8,2.47848534]
[1739155604207,3.93582496,2589.3,2588.8,2.47848534]
[1739155604554,3.86245,2589.1,2588.4,7.12658534]
[1739155604720,3.86266,2588.9,2588.4,3.26328534]
[1739155604910,3.86297,2588.7,2588.4,3.26328534]
[1739155605106,3.86297,2588.7,2588.4,2.47848534]
[1739155605107,3.93646477,2588.6,2588.4,2.47848534]
[1739155605549,3.86325,2588.5,2588.2,0.3861]
[1739155605752,0.07335477,2588.6,2588.2,0.3861]
[1739155605753,3.86312,2588.6,2588.2,0.3861]
[1739155605951,0.07333754,2588.5,2588.2,0.3861]
[1739155606250,3.93659754,2588.5,2588.2,0.3861]
[1739155606554,0.07333754,2588.5,2588.2,0.3861]
[1739155606727,0.76592717,2588.8,2588.2,0.3861]
[1739155606923,0.07289794,2588.7,2588.6,3.86307]
[1739155607142,3.86237,2589.1,2588.4,2.47848534]
[1739155607350,3.93551069,2589.0,2588.4,6.34172534]
[1739155608211,3.86308,2588.7,2588.4,2.47848534]
[1739155608444,4.249388,2588.7,2588.4,2.47848534]
[1739155608610,0.07313931,2588.6,2588.4,2.47848534]
[1739155609455,0.07313931,2588.6,2588.5,3.86324]
[1739155609622,3.86242,2589.1,2588.5,3.86324]
[1739155609817,0.07294966,2588.6,2588.1,0.1448095]
[1739155610022,3.86368,2588.2,2588.1,0.1448095]
[1739155610238,0.7768,2588.1,2587.6,2.47848534]
[1739155610437,3.86422,2587.9,2587.2,2.47848534]
[1739155610677,3.86413,2587.9,2587.2,2.47848534]
[1739155610878,3.86476,2587.5,2587.2,2.47848534]
[1739155611061,3.86446,2587.7,2587.2,2.47848534]
[1739155611263,0.07210449,2587.4,2587.2,2.5171362]
[1739155611466,0.7768,2588.1,2587.6,6.34293534]
[1739155611638,0.7768,2588.1,2587.6,2.47848534]
[1739155611843,0.06825645,2588.0,2587.6,2.47848534]
[1739155612389,0.06825645,2588.0,2587.7,0.35855525]
[1739155612974,3.86415,2587.9,2587.7,0.35855525]
[1739155613179,3.86428,2587.8,2587.7,0.35855525]
[1739155613344,3.93280418,2587.8,2587.7,0.27235525]
[1739155613544,0.06852418,2587.8,2587.6,2.47848534]
[1739155614438,0.06852418,2587.8,2587.6,6.34306534]
[1739155614954,0.06837737,2587.7,2587.6,2.47848534]
[1739155615274,3.86417,2587.9,2587.6,2.47848534]
[1739155615476,0.06837737,2587.7,2587.6,2.47848534]
[1739155615682,0.7946,2588.5,2587.9,3.86407]
[1739155615880,4.65749,2588.8,2588.2,2.47848534]
[1739155616100,0.7946,2588.8,2588.3,3.8634]
[1739155616414,0.85924063,2590.0,2588.6,2.47848534]
[1739155616415,4.65685,2589.2,2588.6,2.47848534]
[1739155616544,3.86251,2589.0,2588.6,2.47848534]
[1739155617044,0.7946,2589.2,2588.6,2.47848534]
[1739155617247,3.86201,2589.4,2588.8,3.86275]
[1739155617509,3.86249,2589.1,2588.6,2.47848534]
[1739155617718,3.8626,2589.0,2588.6,2.47848534]
[1739155617850,3.86223,2589.2,2588.6,2.47848534]
[1739155618046,4.65639,2589.5,2589.0,2.47848534]
[1739155618286,3.86174,2589.6,2589.0,2.47848534]
[1739155618485,4.65592,2589.8,2589.0,7.13624534]
[1739155618787,0.7946,2589.8,2589.4,2.47848534]
[1739155619558,4.65536,2590.2,2589.4,6.34024534]
[1739155619887,3.86111,2590.0,2589.4,2.47848534]
[1739155620190,3.86163,2589.6,2589.4,2.47848534]
[1739155620492,3.86174,2589.5,2589.4,2.47848534]
[1739155620694,0.7946,2589.5,2589.0,2.47848534]
[1739155620986,0.7946,2590.1,2589.0,2.47848534]
[1739155621192,3.8611,2590.0,2589.4,2.47848534]
[1739155621524,3.7946,2590.1,2589.4,2.47848534]
[1739155621789,3.7946,2590.1,2589.2,3.86204]
[1739155621790,3.86028,2590.5,2589.8,6.33978534]
[1739155621955,0.06908535,2590.0,2589.8,3.8613]
[1739155622147,3.85971,2590.9,2590.2,3.86057]
[1739155622342,3.92894535,2590.8,2590.6,2.47848534]
[1739155622577,3.85996,2590.7,2590.6,2.47848534]
[1739155622801,3.86035,2590.5,2590.2,2.47848534]
[1739155623009,0.07108745,2590.7,2590.2,2.47848534]
[1739155623307,3.85902,2591.4,2590.7,3.85985]
[1739155623503,4.65328,2591.6,2590.4,0.7953]
[1739155623504,0.7946,2591.6,2591.1,2.47848534]
[1739155623675,0.07108745,2591.3,2591.2,3.85921]
[1739155624006,3.85811,2592.0,2591.5,2.47848534]
[1739155624375,0.07081996,2591.9,2591.8,3.85832]
[1739155624570,3.85745,2592.4,2591.3,4.65428]
[1739155624769,0.07081996,2592.3,2591.8,2.47848534]
[1739155625005,3.85798,2592.1,2591.8,2.47848534]
[1739155625172,0.07081996,2592.2,2591.8,2.47848534]
[1739155625375,3.85789,2592.1,2591.8,2.47848534]
[1739155625616,0.07081996,2592.0,2591.8,2.47848534]
[1739155625904,0.07081996,2592.0,2591.4,2.47848534]
[1739155626113,0.7946,2592.8,2591.8,2.47848534]
[1739155626294,0.07081996,2591.9,2591.7,3.85841]
[1739155626622,0.07081996,2591.8,2591.5,3.89733137]
[1739155626901,0.07081996,2591.8,2591.3,0.7953]
[1739155626902,0.07081996,2591.8,2591.4,3.8589]
[1739155627113,3.85804,2592.0,2591.7,2.47848534]
[1739155627257,3.85804,2592.0,2591.3,3.27378534]
[1739155627463,0.07081996,2591.9,2591.3,3.27378534]
[1739155627704,3.85836,2591.8,2591.3,3.27378534]
[1739155627905,3.8586,2591.7,2591.3,3.27378534]
[1739155628291,0.07081996,2591.6,2591.3,3.27378534]
[1739155628492,3.85884,2591.5,2591.3,3.27378534]
[1739155628693,3.85884,2591.5,2591.3,2.47848534]
[1739155628989,0.07081996,2591.4,2591.3,2.47848534]
[1739155629389,3.85881,2591.5,2591.3,2.47848534]
[1739155629595,0.07081996,2591.4,2591.3,6.33740534]
[1739155629790,4.67274,2592.8,2591.5,0.7623]
[1739155630019,4.67274,2592.8,2592.3,2.47848534]
[1739155630231,3.85729,2592.5,2592.3,2.47848534]
[1739155630404,3.85742,2592.4,2591.9,2.47848534]
[1739155630620,3.85787,2592.1,2591.9,2.47848534]
[1739155630827,3.85802,2592.0,2591.9,2.47848534]
[1739155631007,3.85862,2591.6,2591.5,2.47848534]
[1739155631430,3.85862,2591.6,2591.1,2.47848534]
[1739155631802,3.85878,2591.5,2591.1,2.47848534]
[1739155632140,3.85821,2591.9,2591.1,6.33775534]
[1739155632346,3.8586,2591.7,2591.1,2.47848534]
[1739155632647,3.85921,2591.2,2591.1,2.47848534]
[1739155632952,3.85981,2590.8,2590.7,2.47848534]
[1739155633240,3.85963,2591.0,2590.7,2.47848534]
[1739155634242,3.85896,2591.4,2590.7,2.47848534]
[1739155634440,3.85872,2591.6,2591.1,2.47848534]
[1739155634593,3.85907,2591.3,2591.1,2.47848534]
[1739155634799,3.85965,2591.0,2590.7,2.47848534]
[1739155635249,3.85981,2590.8,2590.7,2.47848534]
[1739155635540,3.85965,2591.0,2590.3,0.7623]
[1739155635541,3.86038,2590.5,2590.3,2.47848534]
[1739155635748,3.8604,2590.4,2590.3,2.47848534]
[1739155635944,3.86038,2590.5,2590.3,2.47848534]
[1739155636311,3.8604,2590.4,2590.3,2.47848534]
[1739155636761,3.86081,2590.2,2589.9,2.47848534]
[1739155637413,0.06879961,2590.1,2589.9,2.47848534]
[1739155638478,3.861,2590.0,2589.9,2.47848534]
[1739155638774,3.861,2590.0,2589.5,2.47848534]
[1739155638775,3.8616,2589.6,2589.5,2.47848534]
[1739155638929,3.86199,2589.4,2589.1,2.47848534]
[1739155639137,0.06845448,2589.3,2589.1,2.47848534]
[1739155639514,3.86219,2589.2,2589.1,2.47848534]
[1739155639752,3.86253,2589.0,2588.7,2.47848534]
[1739155639969,0.06798839,2588.9,2588.7,2.47848534]
[1739155640625,3.93072839,2588.9,2588.7,2.47848534]
[1739155641366,0.06798839,2588.9,2588.7,2.47848534]
[1739155641828,3.86279,2588.8,2588.7,2.47848534]
[1739155642026,3.86279,2588.8,2588.3,2.47848534]
[1739155642250,3.86304,2588.7,2588.3,2.47848534]
[1739155642433,3.86321,2588.6,2588.3,2.47848534]
[1739155642831,3.86339,2588.4,2587.9,3.23008534]
[1739155643067,3.86369,2588.2,2587.9,2.47848534]
[1739155643234,0.06535534,2588.3,2588.0,3.86394]
[1739155643440,0.7555,2588.6,2588.2,2.47848534]
[1739155643637,3.86324,2588.5,2588.2,2.47848534]
[1739155643871,0.7555,2588.6,2587.8,3.86414]
[1739155643872,3.86353,2588.3,2587.8,2.47848534]
[1739155644029,3.86384,2588.1,2587.8,2.47848534]
[1739155644722,3.86413,2587.9,2587.4,2.47848534]
[1739155644939,3.8643,2587.8,2587.4,2.47848534]
[1739155645118,3.86445,2587.7,2587.4,2.47848534]
[1739155645638,3.86413,2587.9,2587.4,2.47848534]
[1739155645837,3.86444,2587.7,2587.4,2.47848534]
[1739155646223,3.86413,2587.9,2587.4,2.47848534]
[1739155647152,3.86444,2587.7,2587.4,2.47848534]
[1739155647380,3.86349,2588.4,2587.4,2.80149387]
[1739155647535,3.86375,2588.2,2587.8,2.47848534]
[1739155648364,0.7555,2588.6,2587.8,2.47848534]
[1739155648365,4.65411893,2588.3,2587.8,2.47848534]
[1739155648783,3.86371,2588.2,2587.8,2.47848534]
[1739155649092,3.86371,2588.2,2587.4,0.32300853]
[1739155649093,3.86431,2587.8,2587.4,2.47848534]
[1739155649695,3.86373,2588.2,2587.6,3.86452]
[1739155649991,3.86398,2588.0,2587.9,2.47848534]
[1739155650290,4.65404893,2588.3,2587.9,2.47848534]
[1739155650496,3.86341,2588.4,2587.9,2.47848534]
[1739155650664,4.61863,2588.6,2587.9,2.47848534]
[1739155650986,4.61863,2588.6,2587.9,6.34259534]
[1739155651191,3.86341,2588.4,2587.9,2.47848534]
[1739155651988,4.63898234,2588.5,2587.9,6.34249534]
[1739155652205,3.86339,2588.4,2587.9,2.47848534]
[1739155652406,3.86379,2588.2,2587.9,2.47848534]
[1739155652706,3.86359,2588.3,2587.9,2.47848534]
[1739155652855,0.06478502,2588.1,2587.9,2.47848534]
[1739155653053,3.86385,2588.1,2587.9,2.47848534]
[1739155653250,0.06478502,2588.0,2587.9,2.47848534]
[1739155653691,7.72724,2588.3,2587.9,2.47848534]
[1739155653878,3.92876502,2588.0,2587.9,2.47848534]
[1739155654081,3.8644,2587.8,2587.5,2.47848534]
[1739155654486,0.06398997,2587.7,2587.5,2.47848534]
[1739155654863,3.86375,2588.2,2587.6,3.86443]
[1739155655058,0.77573234,2588.5,2587.9,2.47848534]
[1739155655468,3.86177,2589.5,2588.5,3.86324]
[1739155655814,3.86293,2588.8,2588.6,2.47848534]
[1739155656307,4.65245698,2589.2,2588.6,2.47848534]
[1739155656673,3.86294,2588.7,2588.6,2.47848534]
[1739155656871,4.61829,2588.9,2588.6,2.47848534]
[1739155657071,3.86239,2589.1,2588.6,2.47848534]
[1739155657407,7.72431,2589.3,2589.0,2.47848534]
[1739155657613,3.86272,2588.9,2588.6,2.47848534]
[1739155657811,3.86294,2588.7,2588.6,2.47848534]
[1739155658107,3.86272,2588.9,2588.6,2.47848534]
[1739155658414,3.86279,2588.8,2588.6,2.47848534]
[1739155658925,3.8625,2589.0,2588.6,2.47848534]
[1739155659221,1.54727432,2589.4,2588.7,3.86281]
[1739155659413,3.86219,2589.2,2589.1,2.47848534]
[1739155659616,3.55,2589.5,2588.7,2.47848534]
[1739155659810,3.86279,2588.8,2588.7,2.47848534]
[1739155660587,3.8634,2588.4,2588.3,2.47848534]
[1739155661012,3.86313,2588.6,2588.3,2.47848534]
[1739155661487,3.86339,2588.4,2588.3,2.47848534]
[1739155662299,3.86313,2588.6,2587.9,2.47848534]
[1739155662300,0.78840404,2588.5,2587.9,2.47848534]
[1739155662528,3.86386,2588.1,2587.9,2.47848534]
[1739155662674,3.86398,2588.0,2587.9,2.47848534]
[1739155662870,3.86357,2588.3,2587.9,2.47848534]
[1739155663070,0.78840404,2588.5,2587.9,2.47848534]
[1739155663325,3.86275,2588.9,2587.9,2.47848534]
[1739155663326,3.863,2588.7,2588.3,3.26938534]
[1739155663609,4.63170306,2588.6,2588.3,3.26938534]
[1739155663978,3.86339,2588.4,2587.9,3.26938534]
[1739155664211,3.86387,2588.1,2587.9,2.47848534]
[1739155664403,3.86398,2588.0,2587.9,2.47848534]
[1739155667634,3.92805641,2588.0,2587.9,2.47848534]
[1739155667855,3.86443,2587.7,2587.1,2.48348534]
[1739155667998,3.86518,2587.2,2587.1,2.48348534]
[1739155668199,6.86518,2587.2,2587.1,0.005]
[1739155668404,6.9288587,2587.2,2587.1,0.005]
[1739155668715,7.4788587,2587.2,2587.1,0.005]
[1739155668916,3.86578,2586.8,2586.7,2.47848534]
[1739155669640,3.9294587,2586.8,2586.7,2.47848534]
[1739155670507,4.71409246,2586.8,2586.7,2.47848534]
[1739155670807,0.0636787,2586.8,2586.7,2.47848534]
[1739155671033,3.86488,2587.5,2586.7,3.26938534]
[1739155671244,3.86488,2587.5,2587.2,2.47848534]
[1739155671508,3.92716156,2587.4,2587.2,2.47848534]
[1739155671702,3.86503,2587.3,2587.2,2.47848534]
[1739155672162,3.92757579,2587.3,2587.2,2.47848534]
[1739155672461,0.06254579,2587.3,2587.2,2.47848534]
[1739155672812,3.86461,2587.6,2587.2,2.47848534]
[1739155673007,3.86451,2587.7,2587.2,2.47848534]
[1739155673325,0.06267557,2587.6,2587.2,2.47848534]
[1739155674114,0.06267557,2587.6,2587.2,6.34355534]
[1739155674344,0.7538,2588.1,2587.3,0.7714]
[1739155674569,3.92694968,2588.0,2587.2,2.47848534]
[1739155674733,0.7538,2588.1,2587.0,0.7714]
[1739155674734,3.86438,2587.8,2587.6,2.47848534]
[1739155675066,0.06296968,2587.7,2587.6,2.47848534]
[1739155675460,3.86443,2587.7,2587.6,2.47848534]
[1739155675656,3.92739968,2587.7,2587.6,2.47848534]
[1739155675856,0.06296968,2587.7,2587.2,2.47848534]
[1739155676047,3.92752968,2587.7,2587.2,2.47848534]
[1739155676233,3.86417,2587.9,2587.6,2.47848534]
[1739155677035,7.72845,2587.9,2587.6,2.47848534]
[1739155677270,3.86417,2587.9,2587.6,2.47848534]
[1739155677475,3.86437,2587.8,2587.6,2.47848534]
[1739155678090,3.86417,2587.9,2587.6,2.47848534]
[1739155678674,3.86443,2587.7,2587.6,2.47848534]
[1739155678851,3.86563,2586.9,2586.8,2.47848534]
[1739155679051,0.7538,2587.2,2586.8,2.47848534]
[1739155679052,3.0,2587.3,2586.8,2.47848534]
[1739155679367,3.86549,2587.0,2586.8,2.47848534]
[1739155679693,3.86549,2587.0,2586.9,2.23949066]
[1739155680855,4.65677069,2587.1,2586.9,2.23949066]
[1739155681075,3.86548,2587.0,2586.9,2.23949066]
[1739155681434,3.0,2587.3,2586.9,2.23949066]
[1739155681435,3.86509,2587.3,2586.9,2.23949066]
[1739155681640,0.7538,2587.6,2586.5,0.03865865]
[1739155681641,0.7538,2587.6,2587.2,2.4907725]
[1739155681869,3.86454,2587.7,2587.2,2.4907725]
[1739155682106,3.86483,2587.5,2587.2,2.4907725]
[1739155682431,1.3038,2588.4,2587.2,2.4907725]
[1739155682432,0.06235553,2587.4,2587.2,2.4907725]
[1739155682577,0.06235553,2587.4,2587.3,3.86503]
[1739155682771,3.8641,2588.0,2587.3,3.86503]
[1739155683012,3.92649553,2587.9,2587.7,2.4907725]
[1739155683212,0.06235553,2587.9,2587.7,2.4907725]
[1739155683376,3.86353,2588.3,2587.7,3.2621725]
[1739155683594,3.92603553,2588.2,2587.7,3.2621725]
[1739155683798,0.06235553,2588.2,2587.7,7.1264625]
[1739155683994,0.06235553,2588.2,2588.1,2.4907725]
[1739155684200,0.7538,2588.8,2588.1,2.4907725]
[1739155684424,3.86354,2588.3,2588.1,2.4907725]
[1739155684822,0.76056664,2588.4,2588.1,2.4907725]
[1739155685127,0.06235553,2588.2,2588.1,2.4907725]
[1739155685304,0.76056664,2588.4,2588.1,2.4907725]
[1739155685539,0.76056664,2588.4,2587.7,3.2621725]
[1739155685540,3.86418,2587.9,2587.7,3.2621725]
[1739155685736,3.86418,2587.9,2587.7,2.4907725]
[1739155685921,0.06235553,2587.8,2587.7,2.4907725]
[1739155686311,3.86388,2588.1,2587.7,2.4907725]
[1739155686521,0.06235553,2587.8,2587.7,2.4907725]
[1739155686739,3.86428,2587.8,2587.7,2.4907725]
[1739155687224,3.92663553,2587.8,2587.7,2.4907725]
[1739155687925,0.06235553,2587.8,2587.7,2.4907725]
[1739155688454,3.92663553,2587.8,2587.7,2.4907725]
[1739155688741,3.86428,2587.8,2587.7,2.4907725]
[1739155688913,3.92663553,2587.8,2587.7,2.4907725]
[1739155690473,3.86488,2587.4,2587.3,2.4907725]
[1739155690814,3.92806588,2587.4,2587.3,2.4907725]
[1739155691614,0.06318588,2587.4,2587.3,2.4907725]
[1739155691852,3.92806588,2587.4,2587.3,2.4907725]
[1739155692162,5.7176672,2589.1,2587.6,3.86449]
[1739155692316,3.86339,2588.5,2588.2,2.4907725]
[1739155692856,3.86327,2588.5,2588.2,2.4907725]
[1739155693219,3.86352,2588.4,2588.2,2.4907725]
[1739155693418,3.86353,2588.3,2588.2,2.4907725]
[1739155695051,3.7894,2588.5,2587.8,2.4907725]
[1739155695262,3.86407,2588.0,2587.8,2.4907725]
[1739155695565,3.86413,2587.9,2587.8,2.4907725]
[1739155695773,3.86479,2587.5,2587.4,2.4907725]
[1739155696123,7.72902,2587.7,2587.4,2.4907725]
[1739155696318,3.86461,2587.6,2587.4,2.4907725]
[1739155696921,3.86473,2587.5,2587.4,2.4907725]
[1739155697073,3.86461,2587.6,2587.4,2.4907725]
[1739155697374,7.72932,2587.6,2587.4,2.4907725]
[1739155697581,3.86461,2587.6,2587.0,2.4907725]
[1739155697778,3.86527,2587.2,2587.0,2.4907725]
[1739155698888,3.86533,2587.1,2587.0,2.4907725]
[1739155699590,3.86605,2586.7,2586.6,2.4907725]